bitfinex-derivatives/quotes_BTCF0:USTF0_20250509
["timestamp","ask_amount","ask_price","bid_price","bid_amount"]
[1746797916293,0.45365428,103370.0,103360.0,0.20837475]
[1746797916601,0.69748153,103370.0,103360.0,0.85861119]
[1746797916896,1.05828153,103370.0,103360.0,0.17781119]
[1746797917099,1.09078153,103370.0,103360.0,0.49781119]
[1746797917289,1.09078153,103370.0,103360.0,0.70131929]
[1746797917495,1.08878153,103370.0,103360.0,0.37231929]
[1746797917697,1.08878153,103370.0,103360.0,0.70231929]
[1746797917895,0.48415428,103370.0,103360.0,1.06311929]
[1746797918195,0.39065428,103370.0,103360.0,0.76241929]
[1746797918390,0.69578153,103370.0,103360.0,0.74241929]
[1746797918589,0.69578153,103370.0,103360.0,0.77241929]
[1746797918799,0.95818255,103370.0,103360.0,0.77241929]
[1746797918995,0.59538255,103370.0,103360.0,0.56991119]
[1746797919303,0.59738255,103370.0,103360.0,0.76241929]
[1746797919502,0.95818255,103370.0,103360.0,0.50471119]
[1746797919704,0.90018434,103370.0,103360.0,0.69821929]
[1746797919893,0.3525553,103370.0,103360.0,0.73131929]
[1746797920090,0.53838434,103370.0,103360.0,0.73131929]
[1746797920499,0.3525553,103370.0,103360.0,0.73131929]
[1746797920703,0.3224553,103370.0,103360.0,0.76371929]
[1746797920890,0.3224553,103370.0,103360.0,1.12451929]
[1746797921094,0.2912553,103370.0,103360.0,1.12451929]
[1746797921695,0.2985053,103370.0,103360.0,1.12451929]
[1746797923497,0.2985053,103370.0,103360.0,0.76354815]
[1746797924301,0.48433434,103370.0,103360.0,0.76354815]
[1746797924903,0.91053434,103370.0,103360.0,0.49454005]
[1746797925208,0.91053434,103370.0,103360.0,0.49144005]
[1746797925396,0.91053434,103370.0,103350.0,0.0625]
[1746797925600,0.83703714,103360.0,103350.0,0.41530871]
[1746797925799,0.83703714,103360.0,103350.0,0.46205325]
[1746797925998,0.83703714,103360.0,103350.0,0.44734454]
[1746797926198,0.83703714,103360.0,103350.0,0.49734454]
[1746797926407,0.83703714,103360.0,103350.0,0.48734454]
[1746797926603,0.83703714,103360.0,103350.0,0.51924454]
[1746797926801,0.6512081,103360.0,103350.0,0.52024454]
[1746797927005,0.83703714,103360.0,103350.0,0.52024454]
[1746797927304,0.83903714,103360.0,103350.0,0.51924454]
[1746797928298,0.84103714,103360.0,103350.0,0.71277134]
[1746797928498,0.6237081,103360.0,103350.0,0.68277134]
[1746797928705,0.80953714,103360.0,103350.0,0.68277134]
[1746797928908,0.80953714,103360.0,103350.0,0.69277134]
[1746797929605,0.80953714,103360.0,103350.0,0.72277134]
[1746797929606,0.44873714,103360.0,103350.0,0.72277134]
[1746797930002,0.44873714,103360.0,103350.0,0.69277134]
[1746797930201,0.44873714,103360.0,103350.0,0.66277134]
[1746797930403,0.80953714,103360.0,103350.0,0.46924454]
[1746797930609,0.80953714,103360.0,103350.0,0.66277134]
[1746797930810,0.80953714,103360.0,103350.0,0.09674454]
[1746797931011,0.1935268,103350.0,103340.0,0.01438557]
[1746797931204,1.02128488,103350.0,103340.0,0.37]
[1746797931404,1.02128488,103350.0,103330.0,0.3228456]
[1746797931405,0.1935455,103340.0,103330.0,0.3228456]
[1746797931605,0.44327454,103340.0,103330.0,0.6428456]
[1746797931805,0.44327454,103340.0,103330.0,0.7395995]
[1746797932712,0.44327454,103340.0,103330.0,0.6428175]
[1746797932915,0.44327454,103340.0,103330.0,0.4677539]
[1746797933115,0.44327454,103340.0,103330.0,0.372]
[1746797933309,0.6182455,103340.0,103330.0,0.332]
[1746797933518,0.80407454,103340.0,103330.0,0.382]
[1746797934114,0.80407454,103340.0,103330.0,0.381]
[1746797934416,0.80507454,103340.0,103330.0,0.38]
[1746797934615,0.1935643,103330.0,103320.0,0.355264]
[1746797934805,0.80419334,103330.0,103320.0,0.72997089]
[1746797935006,0.80419334,103330.0,103320.0,0.82674352]
[1746797935816,0.80419334,103330.0,103320.0,0.82874352]
[1746797936713,0.80419334,103330.0,103320.0,0.78034792]
[1746797937621,0.80419334,103330.0,103320.0,0.70195232]
[1746797937814,0.80419334,103330.0,103320.0,0.69995232]
[1746797938114,0.80519334,103330.0,103320.0,0.69995232]
[1746797938719,0.6183643,103330.0,103320.0,0.69995232]
[1746797938917,0.80519334,103330.0,103320.0,0.69995232]
[1746797940815,0.80519334,103330.0,103320.0,0.67995232]
[1746797941118,0.80519334,103330.0,103320.0,0.67996252]
[1746797941708,0.2585643,103330.0,103320.0,0.73996252]
[1746797943011,0.2658143,103330.0,103320.0,0.73996252]
[1746797943317,0.45164334,103330.0,103320.0,1.10076252]
[1746797943807,0.00825,103330.0,103320.0,1.11076252]
[1746797944013,0.00825,103330.0,103320.0,1.25659156]
[1746797944213,0.2018143,103330.0,103320.0,1.41659156]
[1746797944411,0.2018143,103330.0,103320.0,1.23076252]
[1746797944616,0.2018143,103330.0,103320.0,2.73076252]
[1746797944821,0.2018143,103330.0,103320.0,2.39996252]
[1746797945129,0.2018143,103330.0,103320.0,0.87684252]
[1746797945323,0.45014334,103330.0,103320.0,0.87684252]
[1746797945621,0.80994334,103330.0,103320.0,0.70325952]
[1746797945810,0.80994334,103330.0,103320.0,0.70425952]
[1746797946008,0.80994334,103330.0,103320.0,0.51837952]
[1746797946207,0.5616143,103330.0,103320.0,0.72196252]
[1746797946414,0.2008143,103330.0,103320.0,1.08176252]
[1746797946615,0.2008143,103330.0,103320.0,0.69096252]
[1746797946815,0.38664334,103330.0,103320.0,0.17737952]
[1746797947009,0.80954334,103330.0,103320.0,0.11247952]
[1746797947218,1.02547238,103330.0,103320.0,0.01570689]
[1746797947415,0.83964334,103330.0,103320.0,0.25570689]
[1746797947621,0.83964334,103330.0,103320.0,0.24570689]
[1746797948124,0.84064334,103330.0,103320.0,0.20470689]
[1746797948425,0.84064334,103330.0,103320.0,0.38470689]
[1746797948616,0.84064334,103330.0,103320.0,0.38570689]
[1746797949120,0.193583,103320.0,103310.0,4e-08]
[1746797949320,0.1936205,103300.0,103290.0,0.18378734]
[1746797949522,0.37944954,103300.0,103290.0,0.18378734]
[1746797949721,0.44084954,103300.0,103290.0,0.28056933]
[1746797949927,0.80164954,103300.0,103290.0,0.13395121]
[1746797950131,0.81125925,103300.0,103290.0,0.13395121]
[1746797950421,0.80164954,103300.0,103290.0,0.13395121]
[1746797950626,0.80164954,103300.0,103290.0,0.13895121]
[1746797950927,0.80164954,103300.0,103290.0,0.49895121]
[1746797951117,0.80164954,103300.0,103290.0,0.72529041]
[1746797951319,0.66978804,103320.0,103290.0,0.72529041]
[1746797951320,0.2903979,103320.0,103310.0,0.1935871]
[1746797951524,0.7125979,103320.0,103310.0,0.5235871]
[1746797951721,0.89842694,103320.0,103310.0,0.5779871]
[1746797951925,1.08425598,103320.0,103310.0,0.1301101]
[1746797952125,0.1936017,103310.0,103300.0,0.0311]
[1746797952325,0.83733074,103310.0,103300.0,0.0333]
[1746797952530,0.83733074,103310.0,103300.0,0.13009136]
[1746797952726,0.83733074,103310.0,103300.0,0.54119136]
[1746797953121,0.83733074,103310.0,103300.0,0.16119136]
[1746797953325,0.83733074,103310.0,103300.0,0.51119136]
[1746797953530,0.83733074,103310.0,103300.0,0.16119136]
[1746797953731,0.83733074,103310.0,103300.0,0.13209136]
[1746797954127,0.83733074,103310.0,103300.0,0.002]
[1746797954322,0.83733074,103310.0,103300.0,0.005]
[1746797954529,0.83733074,103310.0,103300.0,0.0383]
[1746797954831,0.83733074,103310.0,103300.0,0.51510073]
[1746797955031,0.83733074,103310.0,103300.0,0.16560073]
[1746797955634,0.83733074,103310.0,103300.0,0.13510073]
[1746797955929,0.83733074,103310.0,103300.0,0.005]
[1746797956419,0.83733074,103310.0,103300.0,0.3759]
[1746797956627,0.83733074,103310.0,103300.0,0.4064]
[1746797956828,0.83733074,103310.0,103300.0,0.50320073]
[1746797957033,0.83733074,103310.0,103300.0,0.16320073]
[1746797957325,0.44583074,103310.0,103300.0,0.90400073]
[1746797957522,0.41247844,103320.0,103310.0,0.1936017]
[1746797957826,0.41247844,103320.0,103310.0,0.826]
[1746797958336,0.36407914,103320.0,103310.0,1.08640243]
[1746797958634,0.36407914,103320.0,103310.0,1.07640243]
[1746797958934,0.36407914,103320.0,103310.0,1.07740243]
[1746797959832,0.36407914,103320.0,103310.0,1.07840243]
[1746797960033,0.36407914,103320.0,103310.0,1.05840243]
[1746797960428,0.2419934,103320.0,103310.0,0.74840243]
[1746797960736,0.2419934,103320.0,103310.0,1.08840243]
[1746797962039,0.2419934,103320.0,103310.0,1.09140243]
[1746797963035,0.42782244,103320.0,103310.0,0.86780073]
[1746797963229,0.49452244,103320.0,103310.0,0.86780073]
[1746797964040,0.49452244,103320.0,103310.0,1.06140243]
[1746797964229,0.3086934,103320.0,103310.0,0.86780073]
[1746797964539,0.3086934,103320.0,103310.0,1.06140243]
[1746797964738,0.3086934,103320.0,103310.0,0.86780073]
[1746797964939,0.2419934,103320.0,103310.0,1.07140243]
[1746797968143,0.42782244,103320.0,103310.0,0.87780073]
[1746797968342,0.67935148,103320.0,103310.0,0.87310073]
[1746797968547,1.07615148,103320.0,103310.0,0.3555]
[1746797968743,0.1936205,103300.0,103290.0,0.59884473]
[1746797968949,0.37944954,103300.0,103290.0,1.00554473]
[1746797969144,0.41484954,103300.0,103290.0,0.47066473]
[1746797969351,0.41484954,103300.0,103290.0,0.56745609]
[1746797969847,0.41484954,103300.0,103290.0,0.42495609]
[1746797970043,0.47974954,103300.0,103290.0,0.42495609]
[1746797970244,0.47974954,103300.0,103290.0,0.46295609]
[1746797970640,0.47974954,103300.0,103290.0,0.49825609]
[1746797971150,0.47974954,103300.0,103290.0,0.43495609]
[1746797971341,0.47974954,103300.0,103290.0,0.47495609]
[1746797971542,0.47974954,103300.0,103290.0,0.50795609]
[1746797971743,0.47974954,103300.0,103290.0,0.54325609]
[1746797972953,0.47974954,103300.0,103290.0,0.52325609]
[1746797973252,0.47974954,103300.0,103290.0,0.46495609]
[1746797973546,0.47974954,103300.0,103290.0,0.29268333]
[1746797973738,0.1936392,103290.0,103280.0,0.0325]
[1746797973942,0.99199728,103290.0,103280.0,0.3825]
[1746797974141,0.99199728,103290.0,103280.0,0.4793101]
[1746797974552,0.99199728,103290.0,103280.0,0.3825]
[1746797974753,0.80616824,103290.0,103280.0,0.3525]
[1746797974948,0.2595392,103290.0,103280.0,0.68617748]
[1746797975159,0.2595392,103290.0,103280.0,0.85617748]
[1746797975363,0.1936392,103290.0,103280.0,1.45880652]
[1746797975660,0.2420339,103300.0,103290.0,0.1936392]
[1746797975860,0.2420339,103300.0,103290.0,1.21042111]
[1746797976069,0.42786294,103300.0,103290.0,0.47434191]
[1746797976261,0.42786294,103300.0,103290.0,1.14480059]
[1746797976564,0.49656294,103300.0,103290.0,1.14480059]
[1746797976765,0.49656294,103300.0,103290.0,0.17706139]
[1746797976766,0.85736294,103300.0,103290.0,0.17706139]
[1746797976953,0.89336294,103300.0,103290.0,0.50006139]
[1746797977152,0.89336294,103300.0,103290.0,0.46686139]
[1746797977352,0.89336294,103300.0,103290.0,0.32754191]
[1746797977765,0.89336294,103300.0,103290.0,0.36134191]
[1746797978265,0.3107339,103300.0,103290.0,1.05869121]
[1746797978453,0.3107339,103300.0,103290.0,0.55005201]
[1746797978658,0.49656294,103300.0,103290.0,0.55005201]
[1746797979067,0.50382294,103300.0,103290.0,0.55005201]
[1746797980769,0.53792294,103300.0,103290.0,0.03447091]
[1746797981068,0.89872294,103300.0,103290.0,0.40447091]
[1746797981265,0.89872294,103300.0,103290.0,0.38954191]
[1746797981864,0.7128939,103300.0,103290.0,0.38954191]
[1746797982168,0.89872294,103300.0,103290.0,0.38954191]
[1746797983068,0.89872294,103300.0,103290.0,0.42514191]
[1746797984069,0.3520939,103300.0,103290.0,0.72134574]
[1746797984269,0.3520939,103300.0,103290.0,0.90160654]
[1746797984571,0.3179939,103300.0,103290.0,0.77004574]
[1746797984763,0.3179939,103300.0,103290.0,0.79084574]
[1746797984962,0.3179939,103300.0,103290.0,1.12084574]
[1746797985169,0.39168084,103300.0,103290.0,1.12084574]
[1746797986673,0.39168084,103300.0,103290.0,0.79084574]
[1746797986867,0.27456744,103300.0,103290.0,1.44667478]
[1746797987063,0.27456744,103300.0,103290.0,1.39667478]
[1746797987367,0.08094694,103300.0,103290.0,1.60931582]
[1746797987569,0.08094694,103300.0,103290.0,3.29348678]
[1746797988074,0.08094694,103300.0,103290.0,3.28348678]
[1746797989068,0.08094694,103300.0,103290.0,3.28347456]
[1746797989775,0.00726,103300.0,103290.0,3.09173059]
[1746797990166,0.00726,103300.0,103290.0,3.05173059]
[1746797990873,0.00726,103300.0,103290.0,3.05173302]
[1746797991182,0.2008805,103300.0,103290.0,2.78779595]
[1746797991680,0.2008805,103300.0,103290.0,2.61083595]
[1746797991879,0.2008805,103300.0,103290.0,2.78767595]
[1746797992575,0.00726,103300.0,103290.0,2.78768553]
[1746797992781,0.00726,103300.0,103290.0,2.88768553]
[1746797993278,0.00726,103300.0,103290.0,3.1317706]
[1746797993466,0.2008805,103300.0,103290.0,3.1317706]
[1746797994376,0.2008805,103300.0,103290.0,3.13177137]
[1746797994581,0.2008805,103300.0,103290.0,2.7876863]
[1746797994881,0.2008805,103300.0,103290.0,2.8876863]
[1746797996280,0.2008805,103300.0,103290.0,2.88768916]
[1746797996486,0.2008805,103300.0,103290.0,2.79768916]
[1746797996672,0.2008805,103300.0,103290.0,2.89768916]
[1746797997682,0.2008805,103300.0,103290.0,2.79768916]
[1746797997881,0.2008805,103300.0,103290.0,2.79769474]
[1746797998183,0.2008805,103300.0,103290.0,1.16085474]
[1746797998376,0.2691805,103300.0,103290.0,1.33529474]
[1746797998682,0.2008805,103300.0,103290.0,1.54937981]
[1746797999076,0.2008805,103300.0,103290.0,1.53937981]
[1746797999282,0.00726,103300.0,103290.0,1.62937981]
[1746797999483,0.2008805,103300.0,103290.0,1.52937981]
[1746797999779,0.2008805,103300.0,103290.0,1.14097466]
[1746798000083,0.2691805,103300.0,103290.0,0.92721466]
[1746798000577,0.2691805,103300.0,103290.0,0.79085386]
[1746798000578,0.2008805,103300.0,103290.0,0.79085386]
[1746798000979,0.2008805,103300.0,103290.0,1.15085386]
[1746798001383,0.2008805,103300.0,103290.0,1.14085386]
[1746798001982,0.44496557,103300.0,103290.0,0.52771466]
[1746798002282,0.51456557,103300.0,103290.0,0.83771466]
[1746798002484,0.2704805,103300.0,103290.0,0.83771466]
[1746798002782,0.2704805,103300.0,103290.0,0.75685386]
[1746798002980,0.2008805,103300.0,103290.0,0.75685386]
[1746798003187,0.2008805,103300.0,103290.0,1.24993386]
[1746798003686,0.2008805,103300.0,103290.0,1.24973386]
[1746798004082,0.2357805,103300.0,103290.0,1.24973386]
[1746798004277,0.2357805,103300.0,103290.0,1.28973386]
[1746798004581,0.51376557,103300.0,103290.0,0.07197756]
[1746798004780,0.6304805,103300.0,103290.0,0.01496265]
[1746798004982,0.2696805,103300.0,103290.0,0.47257275]
[1746798005184,0.2696805,103300.0,103290.0,0.69508511]
[1746798005383,0.2696805,103300.0,103290.0,0.93164591]
[1746798005586,0.2696805,103300.0,103290.0,0.89604591]
[1746798005787,0.2696805,103300.0,103290.0,1.08968511]
[1746798005986,0.2696805,103300.0,103290.0,0.76528511]
[1746798006182,0.2696805,103300.0,103290.0,0.88164591]
[1746798006381,0.2696805,103300.0,103290.0,0.53525446]
[1746798006382,0.87456557,103300.0,103290.0,0.53525446]
[1746798006587,0.51376557,103300.0,103290.0,0.42384436]
[1746798006789,0.51376557,103300.0,103290.0,0.50065446]
[1746798007082,0.51376557,103300.0,103290.0,0.46065446]
[1746798007282,0.51376557,103300.0,103290.0,1.08139366]
[1746798007283,0.2696805,103300.0,103290.0,1.08139366]
[1746798007479,0.34336744,103300.0,103290.0,1.10268054]
[1746798007883,0.34336744,103300.0,103290.0,0.90904134]
[1746798008081,0.34336744,103300.0,103290.0,1.10268054]
[1746798008482,0.34336744,103300.0,103290.0,0.90904134]
[1746798008780,0.193658,103280.0,103270.0,0.0342]
[1746798009082,0.193658,103280.0,103270.0,0.4068101]
[1746798009083,0.58299767,103280.0,103270.0,0.4068101]
[1746798009283,0.99221617,103280.0,103270.0,0.0057929]
[1746798009484,1.30560124,103280.0,103270.0,4e-08]
[1746798009789,1.35046937,103280.0,103270.0,4e-08]
[1746798009990,1.35146937,103280.0,103270.0,0.02300004]
[1746798010288,1.10146937,103280.0,103270.0,4e-08]
[1746798010687,0.1936767,103270.0,103260.0,0.00397037]
[1746798010883,0.84578697,103270.0,103260.0,0.01857907]
[1746798011392,0.1937142,103250.0,103240.0,0.0352]
[1746798011588,0.74072447,103250.0,103240.0,0.3952]
[1746798011785,0.6596142,103250.0,103240.0,0.49203823]
[1746798011982,0.84582447,103250.0,103240.0,0.47203823]
[1746798012177,0.84582447,103250.0,103240.0,0.48203823]
[1746798012383,0.85308447,103250.0,103240.0,0.45203823]
[1746798012584,0.85408447,103250.0,103240.0,0.47403823]
[1746798012987,0.85608447,103250.0,103240.0,0.48003823]
[1746798013289,0.85608447,103250.0,103240.0,0.47483823]
[1746798013587,0.85608447,103250.0,103240.0,0.46483823]
[1746798013783,0.6698742,103250.0,103240.0,0.46483823]
[1746798013987,0.49528447,103250.0,103240.0,0.43483823]
[1746798014189,0.49528447,103250.0,103240.0,0.56453823]
[1746798014493,0.49428447,103250.0,103240.0,0.54253823]
[1746798014788,0.3100742,103250.0,103240.0,0.91379994]
[1746798015091,0.3100742,103250.0,103240.0,0.94899994]
[1746798015288,0.49628447,103250.0,103240.0,1.14273294]
[1746798015588,0.2742742,103250.0,103240.0,0.94899994]
[1746798015975,0.2742742,103250.0,103240.0,1.14273294]
[1746798016179,0.2742742,103250.0,103240.0,0.94899994]
[1746798016581,0.2049742,103250.0,103240.0,1.29894321]
[1746798016883,0.2049742,103250.0,103240.0,0.91899994]
[1746798017085,0.2785742,103250.0,103240.0,0.91899994]
[1746798017390,0.46478447,103250.0,103240.0,1.09311994]
[1746798017887,0.2785742,103250.0,103240.0,1.09311994]
[1746798018484,0.46478447,103250.0,103240.0,0.12329994]
[1746798018684,0.193733,103240.0,103230.0,0.04007152]
[1746798018890,0.048441,103230.0,103210.0,0.39271028]
[1746798019090,0.37998077,103220.0,103210.0,0.3608]
[1746798019290,0.2639705,103220.0,103210.0,0.79765699]
[1746798019490,0.2639705,103220.0,103210.0,1.02824629]
[1746798019695,0.45018077,103220.0,103210.0,1.02824629]
[1746798019889,0.45018077,103220.0,103210.0,0.83445699]
[1746798020190,0.45018077,103220.0,103210.0,1.02824629]
[1746798020396,0.45018077,103220.0,103210.0,0.83445699]
[1746798020890,0.2639705,103220.0,103210.0,1.04301325]
[1746798021190,0.45018077,103220.0,103210.0,1.04301309]
[1746798021393,0.45118077,103220.0,103210.0,1.06101309]
[1746798021786,0.45118077,103220.0,103210.0,1.07583315]
[1746798022093,0.45218077,103220.0,103210.0,1.11753315]
[1746798022295,0.2659705,103220.0,103210.0,1.11753315]
[1746798022488,0.2306705,103220.0,103210.0,1.16816782]
[1746798022892,0.1957705,103220.0,103210.0,1.45437809]
[1746798023296,0.1957705,103220.0,103210.0,1.16816782]
[1746798023487,0.38198077,103220.0,103210.0,1.18816782]
[1746798023688,0.45328077,103220.0,103210.0,1.18816782]
[1746798024197,0.2670705,103220.0,103210.0,1.18816782]
[1746798024495,0.2670705,103220.0,103210.0,1.18816364]
[1746798024695,0.45328077,103220.0,103210.0,1.18816364]
[1746798024897,0.45328077,103220.0,103210.0,1.13816364]
[1746798025195,0.45328077,103220.0,103210.0,1.17816364]
[1746798025695,0.81408077,103220.0,103210.0,0.2398221]
[1746798025887,0.85038077,103220.0,103210.0,5e-08]
[1746798026091,0.1937893,103210.0,103200.0,0.04670339]
[1746798026285,0.81089957,103210.0,103200.0,0.37670339]
[1746798026489,0.45009957,103210.0,103200.0,0.04670339]
[1746798026687,0.2638893,103210.0,103200.0,0.69820602]
[1746798026988,0.292679,103220.0,103210.0,0.1937893]
[1746798027191,0.327179,103220.0,103210.0,0.99067767]
[1746798027395,0.51138927,103220.0,103210.0,0.99067767]
[1746798027595,0.54698927,103220.0,103210.0,1.0875722]
[1746798027998,0.54698927,103220.0,103210.0,1.10232461]
[1746798028200,0.55598927,103220.0,103210.0,1.1023249]
[1746798030095,0.55598927,103220.0,103210.0,0.5585356]
[1746798030301,0.55598927,103220.0,103210.0,0.5029829]
[1746798030501,0.59038927,103220.0,103210.0,0.8637829]
[1746798030801,0.59038927,103220.0,103210.0,0.5029829]
[1746798031600,0.59038927,103220.0,103210.0,0.3767722]
[1746798031801,0.59038927,103220.0,103210.0,0.7567722]
[1746798032098,0.404179,103220.0,103210.0,0.7567722]
[1746798032292,0.59038927,103220.0,103210.0,0.7567722]
[1746798032487,0.59038927,103220.0,103210.0,1.1175722]
[1746798033508,0.59038927,103220.0,103210.0,1.13234893]
[1746798034395,0.369779,103220.0,103210.0,1.13234893]
[1746798034901,0.55598927,103220.0,103210.0,1.13234893]
[1746798035805,0.334179,103220.0,103210.0,1.13234893]
[1746798035997,0.334179,103220.0,103210.0,1.08234893]
[1746798035998,0.299679,103220.0,103210.0,1.08234893]
[1746798036399,0.335079,103220.0,103210.0,1.08234893]
[1746798036908,0.335079,103220.0,103210.0,1.08236951]
[1746798037503,0.299679,103220.0,103210.0,2.58236951]
[1746798037809,0.29483277,103220.0,103210.0,2.58236951]
[1746798038311,0.29483277,103220.0,103210.0,2.59751395]
[1746798039295,0.51834304,103220.0,103210.0,1.08312465]
[1746798039500,0.55314304,103220.0,103210.0,1.12312465]
[1746798039709,0.58854304,103220.0,103210.0,1.12312465]
[1746798040009,0.59580304,103220.0,103210.0,1.31691395]
[1746798040306,0.59580304,103220.0,103210.0,0.76232465]
[1746798040504,0.59580304,103220.0,103210.0,0.45172465]
[1746798040905,0.58853303,103220.0,103210.0,0.45172465]
[1746798041099,0.94933303,103220.0,103210.0,0.45172465]
[1746798041299,0.94933303,103220.0,103210.0,0.43692957]
[1746798041503,0.94933303,103220.0,103210.0,0.45177096]
[1746798041904,0.94933303,103220.0,103210.0,0.47177096]
[1746798042105,0.94933303,103220.0,103210.0,0.38998806]
[1746798042302,0.94933303,103220.0,103210.0,0.36998806]
[1746798042906,0.95880316,103220.0,103210.0,0.36998806]
[1746798043207,0.94933303,103220.0,103210.0,0.36998806]
[1746798043912,1.3370875,103220.0,103200.0,0.04524997]
[1746798044111,0.1938081,103200.0,103190.0,0.14711812]
[1746798044317,0.92702864,103200.0,103190.0,0.51711812]
[1746798044514,1.03202864,103200.0,103190.0,0.51711812]
[1746798044814,0.84581837,103200.0,103190.0,0.32]
[1746798045105,0.84581837,103200.0,103190.0,0.33448365]
[1746798045307,0.48501837,103200.0,103190.0,0.97601446]
[1746798045511,0.48501837,103200.0,103190.0,0.85288756]
[1746798045702,0.2988081,103200.0,103190.0,0.73671446]
[1746798045913,0.2308081,103200.0,103190.0,1.26475446]
[1746798046105,0.2438081,103200.0,103190.0,1.25475446]
[1746798046302,0.2458081,103200.0,103190.0,1.25475446]
[1746798046502,0.2458081,103200.0,103190.0,1.23475446]
[1746798046701,0.2438081,103200.0,103190.0,1.23475446]
[1746798046905,0.2548081,103200.0,103190.0,1.23475446]
[1746798047207,0.2979333,103220.0,103210.0,0.1937893]
[1746798047406,0.38018,103220.0,103210.0,1.2353893]
[1746798047607,0.38018,103220.0,103210.0,1.3437893]
[1746798047798,0.38018,103220.0,103210.0,1.44067444]
[1746798048608,0.2979333,103220.0,103210.0,1.60831444]
[1746798049114,0.2110423,103220.0,103210.0,1.78452471]
[1746798049409,0.2110423,103220.0,103210.0,1.59831444]
[1746798049711,0.02626,103220.0,103210.0,1.96476871]
[1746798050008,0.26743874,103230.0,103220.0,0.1937705]
[1746798050217,0.26743874,103230.0,103220.0,1.0335705]
[1746798050611,0.45364901,103230.0,103220.0,1.11416514]
[1746798050805,0.52384901,103230.0,103220.0,1.14045564]
[1746798051007,0.52384901,103230.0,103220.0,1.29801564]
[1746798051299,0.52584901,103230.0,103220.0,0.88668514]
[1746798051510,0.52584901,103230.0,103220.0,0.74340514]
[1746798051814,0.45216207,103230.0,103220.0,0.92797564]
[1746798052005,0.45216207,103230.0,103220.0,1.30797564]
[1746798052206,0.45216207,103230.0,103220.0,0.56797564]
[1746798052404,0.45216207,103230.0,103220.0,0.74065564]
[1746798052613,0.45216207,103230.0,103220.0,0.93809564]
[1746798053110,0.2659518,103230.0,103220.0,1.27889564]
[1746798053314,0.1957518,103230.0,103220.0,1.42510591]
[1746798053516,0.002,103230.0,103220.0,1.46510591]
[1746798053819,0.200993,103240.0,103230.0,0.1937518]
[1746798054114,0.200993,103240.0,103230.0,1.16226207]
[1746798054319,0.200993,103240.0,103230.0,0.9460518]
[1746798054616,0.200993,103240.0,103230.0,1.04292755]
[1746798054814,0.200993,103240.0,103230.0,0.16837575]
[1746798055014,0.82300327,103240.0,103230.0,0.16837575]
[1746798055221,0.85710327,103240.0,103230.0,0.49837575]
[1746798055518,0.85710327,103240.0,103230.0,0.50837575]
[1746798056016,0.86210327,103240.0,103230.0,0.50837575]
[1746798056518,0.86210327,103240.0,103230.0,0.45177807]
[1746798056717,0.86210327,103240.0,103230.0,0.44177807]
[1746798056919,0.86210327,103240.0,103230.0,0.37490232]
[1746798058519,1.04831354,103240.0,103230.0,0.32490232]
[1746798059018,0.86210327,103240.0,103230.0,0.32490232]
[1746798059821,0.92047733,103240.0,103230.0,0.32490232]
[1746798060321,0.92047733,103240.0,103230.0,0.35490232]
[1746798060513,0.92047733,103240.0,103230.0,0.34490232]
[1746798060708,0.99416427,103240.0,103230.0,0.39490232]
[1746798060908,0.99416427,103240.0,103230.0,0.33490232]
[1746798061111,0.1937893,103210.0,103200.0,0.20074]
[1746798061317,0.1937893,103210.0,103200.0,0.59044]
[1746798061517,0.2633893,103210.0,103200.0,0.59044]
[1746798061720,0.2633893,103210.0,103200.0,0.88111447]
[1746798061917,0.2633893,103210.0,103200.0,1.28191447]
[1746798062426,0.2633893,103210.0,103200.0,0.72810637]
[1746798062618,0.2633893,103210.0,103200.0,1.07810637]
[1746798062923,0.25854235,103210.0,103200.0,1.07810637]
[1746798063125,0.25854235,103210.0,103200.0,1.10487447]
[1746798063315,0.25854235,103210.0,103200.0,1.10587447]
[1746798064125,0.86392668,103210.0,103200.0,0.42786637]
[1746798064423,0.1938081,103200.0,103190.0,0.00145345]
[1746798064625,0.90559243,103200.0,103190.0,0.37145345]
[1746798065024,0.90559243,103200.0,103190.0,0.00145345]
[1746798065220,0.90559243,103200.0,103190.0,0.33145345]
[1746798065711,0.90559243,103200.0,103170.0,0.15109195]
[1746798065712,0.1938457,103180.0,103170.0,0.15109195]
[1746798065917,0.79923003,103180.0,103170.0,0.52109195]
[1746798066117,0.86953003,103180.0,103170.0,0.61799586]
[1746798066418,0.86953003,103180.0,103170.0,0.70202515]
[1746798067322,0.6279457,103180.0,103170.0,0.93588955]
[1746798067720,0.5928457,103180.0,103170.0,0.56588955]
[1746798067919,0.5928457,103180.0,103170.0,0.97008955]
[1746798068116,0.83743003,103180.0,103170.0,0.77622515]
[1746798068321,0.87313003,103180.0,103170.0,0.77622515]
[1746798068518,0.51233003,103180.0,103170.0,0.97008955]
[1746798068727,0.2320457,103180.0,103170.0,1.12377143]
[1746798069120,0.1968457,103180.0,103170.0,1.05835576]
[1746798069328,0.1968457,103180.0,103170.0,1.17377143]
[1746798070124,0.2315457,103180.0,103170.0,1.29041143]
[1746798070931,0.003,103180.0,103170.0,1.29041143]
[1746798071230,0.003,103180.0,103170.0,1.36041143]
[1746798071528,0.1968457,103180.0,103170.0,1.63499576]
[1746798072032,0.1968457,103180.0,103170.0,1.77191976]
[1746798072331,0.1968457,103180.0,103170.0,3.43191976]
[1746798073326,0.1968457,103180.0,103170.0,2.84472028]
[1746798073531,0.1968457,103180.0,103170.0,2.80472028]
[1746798074332,0.1968457,103180.0,103170.0,2.84436028]
[1746798075025,0.003,103180.0,103170.0,3.28586861]
[1746798075227,0.2495608,103190.0,103180.0,0.1938457]
[1746798075433,0.2495608,103190.0,103180.0,1.18953003]
[1746798075930,0.00726,103190.0,103180.0,1.45159219]
[1746798076126,0.00726,103190.0,103180.0,1.17850419]
[1746798076332,0.00826,103190.0,103180.0,1.51050419]
[1746798076536,0.00926,103190.0,103180.0,1.52350419]
[1746798076934,0.15772974,103220.0,103180.0,1.52350419]
[1746798076935,0.26747044,103220.0,103210.0,0.1937893]
[1746798077125,0.30267044,103220.0,103210.0,0.7193893]
[1746798077432,0.07368694,103220.0,103210.0,0.73453815]
[1746798077728,0.07368694,103220.0,103210.0,3.03253579]
[1746798078125,0.07368694,103220.0,103210.0,1.53253579]
[1746798078432,0.07568694,103220.0,103210.0,1.28253579]
[1746798078625,0.07568694,103220.0,103210.0,3.18941979]
[1746798078826,0.07568694,103220.0,103210.0,3.18888573]
[1746798079135,0.07568694,103220.0,103210.0,3.34888573]
[1746798079634,0.002,103220.0,103210.0,3.33427094]
[1746798080232,0.1937342,103240.0,103230.0,0.3390381]
[1746798080423,0.17453804,103260.0,103240.0,0.0968593]
[1746798080624,0.35561464,103260.0,103250.0,0.7538342]
[1746798080838,0.07768694,103260.0,103250.0,1.2491342]
[1746798081022,0.07768694,103260.0,103250.0,2.74514215]
[1746798081335,0.07768694,103260.0,103250.0,3.18199445]
[1746798081538,0.08668694,103260.0,103250.0,3.19163799]
[1746798081725,0.08668694,103260.0,103250.0,3.19163777]
[1746798081922,0.08668694,103260.0,103250.0,3.19163668]
[1746798082236,0.22873343,103270.0,103260.0,0.2936955]